bitfinex-derivatives/quotes_SOLF0:USTF0_20260220
["timestamp","ask_amount","ask_price","bid_price","bid_amount"]
[1771617542530,32.66726825,84.782,84.743,11.00654402]
[1771617542726,32.66726825,84.782,84.745,10.6232]
[1771617544330,32.66726825,84.782,84.744,11.00654402]
[1771617544331,32.66726825,84.782,84.752,11.00654402]
[1771617544532,32.66726825,84.782,84.754,11.00654402]
[1771617544730,32.67133363,84.804,84.758,10.6215]
[1771617545732,32.6652348,84.801,84.758,10.6215]
[1771617546835,32.66517395,84.798,84.758,10.6215]
[1771617547335,32.66517395,84.798,84.759,11.00654402]
[1771617547536,32.66517395,84.798,84.761,10.6211]
[1771617547741,32.66517395,84.798,84.76,14.56878499]
[1771617547932,32.66517395,84.798,84.762,11.00654402]
[1771617548333,32.66517395,84.798,84.764,11.00654402]
[1771617548832,32.66517395,84.798,84.768,10.6203]
[1771617549635,32.66517395,84.798,84.763,11.00654402]
[1771617549832,32.66517395,84.798,84.762,21.62754402]
[1771617550035,32.66517395,84.798,84.763,11.00654402]
[1771617550334,32.66517395,84.798,84.762,10.621]
[1771617550335,32.66517395,84.798,84.764,11.00654402]
[1771617550530,32.66517395,84.798,84.763,11.00654402]
[1771617550936,32.66517395,84.798,84.764,11.00654402]
[1771617554132,32.66517395,84.798,84.763,11.00654402]
[1771617554341,32.69778874,84.795,84.753,10.6222]
[1771617554938,32.69521667,84.783,84.741,11.00654402]
[1771617555731,32.7161156,84.779,84.741,11.00654402]
[1771617555938,32.7161156,84.779,84.735,10.6244]
[1771617556939,32.71351686,84.774,84.735,10.6244]
[1771617558339,32.69872327,84.772,84.735,10.6244]
[1771617558540,32.69872327,84.769,84.73,11.00654402]
[1771617558741,32.6962293,84.764,84.725,11.00654402]
[1771617558937,32.6962293,84.764,84.717,11.00654402]
[1771617559234,32.6962293,84.764,84.716,11.00654402]
[1771617559745,32.6962293,84.752,84.716,11.00654402]
[1771617560646,32.6962293,84.752,84.711,11.00654402]
[1771617561343,32.6962293,84.752,84.71,11.00654402]
[1771617562444,32.6962293,84.752,84.709,21.63424402]
[1771617562949,32.6962293,84.752,84.71,3.56224097]
[1771617564336,32.6962293,84.752,84.713,11.00654402]
[1771617566447,32.6962293,84.752,84.712,11.00654402]
[1771617568354,32.6962293,84.752,84.711,11.00654402]
[1771617570353,32.6962293,84.752,84.71,14.56878499]
[1771617570943,32.75314627,84.75,84.71,14.56878499]
[1771617571144,32.75314627,84.75,84.705,11.00654402]
[1771617571342,32.75314627,84.75,84.704,11.00654402]
[1771617572250,32.75314627,84.75,84.703,11.00654402]
[1771617572647,32.74610321,84.744,84.703,11.00654402]
[1771617573257,32.74610321,84.744,84.7,3.56224097]
[1771617573851,32.74610321,84.744,84.697,11.00654402]
[1771617574050,32.74610321,84.744,84.694,10.6296]
[1771617574759,32.73328241,84.741,84.694,10.6296]
[1771617575759,32.73328241,84.741,84.7,14.19104097]
[1771617575957,32.73328241,84.741,84.7,14.19535895]
[1771617581060,32.73328241,84.741,84.71,3.56655895]
[1771617583664,10.6224,84.752,84.71,3.56655895]
[1771617583854,43.34944365,84.752,84.71,3.56655895]
[1771617584058,32.72704365,84.751,84.71,3.56655895]
[1771617585465,32.72704365,84.751,84.711,10.6274]
[1771617592164,32.72704365,84.751,84.72,3.56655895]
[1771617592472,3.56655895,84.78,84.72,3.56655895]
[1771617592473,32.72764331,84.765,84.724,10.6258]
[1771617592762,32.72764331,84.765,84.72,3.56655895]
[1771617593163,32.72570713,84.763,84.721,10.6261]
[1771617593363,32.72570713,84.763,84.73,3.56655895]
[1771617596867,32.72570713,84.763,84.722,10.6261]
[1771617597273,32.72570713,84.763,84.723,11.00654402]
[1771617597965,32.72570713,84.763,84.724,10.6258]
[1771617598363,32.72570713,84.763,84.725,11.00654402]
[1771617599371,32.72570713,84.763,84.72,3.56655895]
[1771617599372,32.72570713,84.763,84.728,11.00654402]
[1771617600375,32.72570713,84.763,84.729,11.00654402]
[1771617601172,32.72570713,84.763,84.725,11.00654402]
[1771617601372,32.72570713,84.763,84.726,11.00654402]
[1771617601775,32.72570713,84.763,84.734,11.00654402]
[1771617601971,32.72570713,84.763,84.723,14.65384423]
[1771617602177,32.72570713,84.763,84.715,14.65384423]
[1771617602476,32.72570713,84.763,84.714,14.65384423]
[1771617603271,32.72570713,84.763,84.681,29.42114085]
[1771617603272,19.91791432,84.749,84.687,22.06585564]
[1771617603475,19.91791432,84.719,84.673,22.06585564]
[1771617603672,19.91791432,84.71,84.67,14.19915895]
[1771617604173,19.91791432,84.71,84.68,3.56655895]
[1771617604375,19.90013371,84.739,84.68,3.56655895]
[1771617604676,19.90013371,84.739,84.7,3.56655895]
[1771617605076,19.90013371,84.739,84.69,3.56655895]
[1771617605272,19.90013371,84.739,84.68,3.56655895]
[1771617605472,19.89972173,84.731,84.685,10.6307]
[1771617605671,19.89972173,84.729,84.68,3.56655895]
[1771617606073,19.89972173,84.729,84.686,10.6306]
[1771617607074,19.77746704,84.728,84.68,3.56655895]
[1771617607475,19.77746704,84.728,84.679,10.6314]
[1771617607676,19.77746704,84.728,84.68,3.56655895]
[1771617608879,19.81863444,84.726,84.68,3.56655895]
[1771617609081,19.81863444,84.726,84.682,10.6311]
[1771617610881,19.81863444,84.726,84.658,22.06585564]
[1771617610882,19.81186059,84.723,84.675,10.6319]
[1771617611078,19.81186059,84.719,84.67,3.56655895]
[1771617611279,19.81186059,84.732,84.69,14.19665895]
[1771617612482,19.8104669,84.73,84.69,3.56655895]
[1771617613472,19.8104669,84.73,84.692,10.6298]
[1771617614781,19.8104669,84.73,84.7,3.56655895]
[1771617615283,35.43,84.769,84.674,22.06585564]
[1771617615284,10.6228,84.749,84.71,3.56655895]
[1771617615476,19.69994268,84.748,84.71,3.56655895]
[1771617615682,19.69994268,84.739,84.68,3.56655895]
[1771617616686,19.65433802,84.736,84.681,10.6312]
[1771617618487,19.65433802,84.736,84.666,22.06585564]
[1771617618488,19.65433802,84.736,84.69,3.56655895]
[1771617618695,19.65433802,84.736,84.7,3.56655895]
[1771617619891,19.65433802,84.736,84.695,10.6295]
[1771617620690,19.65433802,84.736,84.7,3.56655895]
[1771617621093,19.65433802,84.736,84.701,10.6287]
[1771617622186,19.65433802,84.736,84.7,3.56655895]
[1771617622694,19.65433802,84.736,84.693,10.6297]
[1771617622896,19.65433802,84.736,84.7,10.6288]
[1771617623090,19.65433802,84.736,84.7,14.19535895]
[1771617625897,19.65433802,84.736,84.7,10.6288]
[1771617627300,19.65433802,84.736,84.707,10.6279]
[1771617629199,0.98673802,84.736,84.7,3.56655895]
[1771617629805,0.98673802,84.736,84.71,10.6275]
[1771617632005,0.98673802,84.736,84.702,10.6285]
[1771617635109,0.98673802,84.736,84.683,14.68262318]
[1771617635408,0.98673802,84.736,84.68,3.56655895]
[1771617636703,0.98673802,84.736,84.69,14.19655895]
[1771617637307,0.98673802,84.736,84.7,3.56655895]
[1771617637502,23.29336688,84.775,84.653,21.2694]
[1771617637503,10.44118599,84.751,84.71,3.56655895]
[1771617637908,10.44118599,84.751,84.71,3.56512173]
[1771617638507,21.06725365,84.749,84.71,3.56512173]
[1771617638910,10.44487087,84.748,84.7,3.56512173]
[1771617639807,10.44487087,84.746,84.7,3.56512173]
[1771617640810,10.38843021,84.743,84.7,3.56512173]
[1771617641403,10.38843021,84.759,84.71,3.56512173]
[1771617641608,10.38843021,84.759,84.72,3.56512173]
[1771617645108,10.6217,84.758,84.71,3.56512173]
[1771617645313,10.4683478,84.749,84.7,3.56512173]
[1771617645513,10.4683478,84.749,84.69,3.56512173]
[1771617646812,10.46736565,84.744,84.694,10.6296]
[1771617647113,10.46736565,84.744,84.7,3.56512173]
[1771617647707,10.6235,84.743,84.7,3.56512173]
[1771617647905,10.47889275,84.742,84.7,3.56512173]
[1771617650415,10.47889275,84.742,84.7,14.19392173]
[1771617651718,10.47889275,84.742,84.701,14.68262318]
[1771617653018,10.47889275,84.742,84.7,14.19392173]
[1771617653818,10.47889275,84.742,84.706,10.6281]
[1771617656622,10.47889275,84.742,84.71,3.56512173]
[1771617656820,10.47104557,84.758,84.713,14.68262318]
[1771617657927,10.47104557,84.758,84.721,10.6262]
[1771617660131,10.6207,84.766,84.726,10.6255]
[1771617660330,10.46359323,84.765,84.73,3.56512173]
[1771617660524,22.05733485,84.823,84.717,14.68262318]
[1771617660525,10.46359323,84.777,84.75,3.56512173]
[1771617661828,10.46359323,84.777,84.741,10.6237]
[1771617662131,10.46359323,84.777,84.741,21.64493838]
[1771617662426,10.46359323,84.777,84.737,11.01691531]
[1771617662632,4.77789946,84.759,84.71,0.70786542]
[1771617662930,4.77789946,84.758,84.71,11.33546542]
[1771617663132,4.77789946,84.758,84.711,5.17576038]
[1771617664727,4.77789946,84.758,84.716,10.6268]
[1771617664925,10.6219,84.756,84.711,5.17576038]
[1771617665131,4.77789946,84.755,84.711,5.17576038]
[1771617665533,4.77789946,84.755,84.701,5.17576038]
[1771617666032,4.77789946,84.751,84.708,10.6278]
[1771617667329,4.77789946,84.751,84.71,3.56512173]
[1771617668232,4.77789946,84.751,84.708,10.6278]
[1771617669934,4.77789946,84.751,84.71,3.56512173]
[1771617670430,4.77789946,84.751,84.711,10.6274]
[1771617670640,4.77789946,84.751,84.712,5.00533846]
[1771617671133,5.09242134,84.766,84.723,5.00533846]
[1771617671737,5.09242134,84.766,84.73,3.56512173]
[1771617672037,5.09242134,84.766,84.731,5.00533846]
[1771617672231,5.09242134,84.779,84.732,5.00533846]
[1771617672434,5.09242134,84.799,84.741,5.00533846]
[1771617673036,5.09242134,84.799,84.75,3.56512173]
[1771617673832,10.618,84.787,84.743,5.00533846]
[1771617675038,5.09242134,84.786,84.743,5.00533846]
[1771617675634,5.09242134,84.783,84.736,5.00533846]
[1771617676841,5.09242134,84.783,84.73,18.24774491]
[1771617677041,5.09242134,84.783,84.73,3.56512173]
[1771617677249,3.56512173,84.78,84.73,3.56512173]
[1771617677546,5.09242134,84.779,84.73,3.56512173]
[1771617677736,5.09242134,84.775,84.731,10.625]
[1771617677936,5.09242134,84.775,84.732,5.00533846]
[1771617678541,5.09242134,84.775,84.735,10.6244]
[1771617679546,10.6183,84.785,84.742,5.00533846]
[1771617680137,5.09242134,84.787,84.75,10.6225]
[1771617681341,5.09242134,84.799,84.76,3.56512173]
[1771617681547,5.09242134,84.819,84.761,5.00533846]
[1771617682046,10.6155,84.807,84.763,5.00533846]
[1771617682243,5.09242134,84.819,84.771,5.00533846]
[1771617683336,5.09242134,84.819,84.779,10.619]
[1771617683537,5.09242134,84.833,84.781,5.00533846]
[1771617684441,3.56512173,84.84,84.781,5.00533846]
[1771617684442,5.09242134,84.83,84.781,5.00533846]
[1771617684944,5.09242134,84.819,84.773,10.6196]
[1771617687343,47.30972495,84.863,84.767,5.00533846]
[1771617687344,5.09242134,84.812,84.767,5.00533846]
[1771617688642,10.615,84.811,84.767,5.00533846]
[1771617688842,15.70742134,84.811,84.767,5.00533846]
[1771617689042,5.09242134,84.81,84.767,5.00533846]
[1771617689742,10.6154,84.808,84.767,5.00533846]
[1771617690243,5.09242134,84.829,84.781,5.00533846]
[1771617690443,5.09242134,84.829,84.79,3.56512173]
[1771617691648,5.09242134,84.829,84.785,10.6181]
[1771617693446,5.09242134,84.829,84.77,3.56512173]
[1771617693653,5.09242134,84.819,84.766,5.00533846]
[1771617694152,5.09242134,84.819,84.77,3.56512173]
[1771617694351,5.09242134,84.819,84.771,5.00533846]
[1771617694856,5.09242134,84.834,84.786,5.00533846]
[1771617695447,5.09242134,84.834,84.792,10.6173]
[1771617696254,35.43,84.876,84.8,3.56512173]
[1771617696255,5.09242134,84.849,84.8,3.56512173]
[1771617696458,5.09242134,84.849,84.796,5.00533846]
[1771617697852,5.09242134,84.849,84.804,10.6157]
[1771617698256,5.09242134,84.849,84.81,10.615]
[1771617698756,3.56512173,84.86,84.801,5.36269123]
[1771617698949,3.56512173,84.86,84.828,10.6127]
[1771617699149,5.13258021,84.863,84.828,10.6127]
[1771617699357,5.13258021,84.863,84.815,5.36269123]
[1771617700354,3.55658499,84.87,84.826,5.36269123]
[1771617700660,5.13258021,84.869,84.811,5.36269123]
[1771617701256,5.13258021,84.859,84.8,3.55658499]
[1771617701457,5.13258021,84.849,84.797,5.36269123]
[1771617701856,5.13258021,84.847,84.797,5.36269123]
[1771617702059,5.13258021,84.839,84.797,5.36269123]
[1771617703251,5.13258021,84.849,84.797,5.36269123]
[1771617703556,5.13258021,84.839,84.782,5.36269123]
[1771617704754,5.13258021,84.837,84.787,5.36269123]
[1771617705753,10.6119,84.836,84.789,5.36269123]
[1771617709259,10.6104,84.848,84.791,5.36269123]
[1771617709658,5.13258021,84.847,84.791,5.36269123]
[1771617710760,10.6113,84.841,84.794,5.36269123]
[1771617711763,10.6113,84.841,84.797,5.36269123]
[1771617714267,5.13258021,84.847,84.799,15.97899123]
[1771617715060,5.13258021,84.847,84.8,5.36269123]
[1771617715267,5.13258021,84.847,84.78,9.53486585]
[1771617715268,5.13258021,84.86,84.805,5.36269123]
[1771617715963,5.13258021,84.86,84.821,10.6136]
[1771617716963,5.13258021,84.86,84.821,15.97629123]
[1771617717261,5.13258021,84.86,84.821,5.36269123]
[1771617717861,10.609,84.859,84.821,5.36269123]
[1771617718056,5.13258021,84.858,84.812,10.6148]
[1771617718667,5.13258021,84.858,84.812,15.97749123]
[1771617719469,5.13258021,84.858,84.818,10.6141]
[1771617720164,5.13258021,84.855,84.812,5.36269123]
[1771617720363,5.13258021,84.855,84.791,5.36269123]
[1771617720762,5.13258021,84.855,84.778,5.36269123]
[1771617721166,5.13258021,84.849,84.778,5.36269123]
[1771617721561,5.13258021,84.829,84.778,5.36269123]
[1771617722165,5.13258021,84.823,84.761,5.36269123]
[1771617723665,10.6146,84.814,84.767,5.36269123]
[1771617724070,5.13258021,84.823,84.767,5.36269123]
[1771617724263,5.13258021,84.806,84.758,10.6216]
[1771617725064,5.13258021,84.806,84.754,16.33797939]
[1771617725065,5.13258021,84.801,84.754,5.36269123]
[1771617725866,5.13258021,84.799,84.754,5.36269123]
[1771617726266,5.13258021,84.789,84.741,5.36269123]
[1771617726866,5.13258021,84.789,84.733,10.97528816]
[1771617726867,10.6198,84.773,84.733,10.97528816]
[1771617727068,5.27358636,84.777,84.733,10.97528816]
[1771617727370,5.27358636,84.777,84.733,5.64200843]
[1771617728270,5.27358636,84.777,84.71,21.91518788]
[1771617728271,5.59908587,84.79,84.741,5.64200843]
[1771617728665,5.59908587,84.804,84.761,5.64200843]
[1771617729372,5.59908587,84.818,84.761,5.64200843]
[1771617729668,5.59908587,84.818,84.771,5.64200843]
[1771617729971,10.614,84.819,84.771,5.64200843]
[1771617730361,5.59908587,84.833,84.79,3.56266155]
[1771617731068,5.59908587,84.831,84.787,5.64200843]
[1771617732463,3.56266155,84.83,84.787,5.64200843]
[1771617732668,5.59908587,84.826,84.772,16.26180843]
[1771617733070,9.16174742,84.82,84.773,5.64200843]
[1771617733372,9.16174742,84.82,84.774,16.26160843]
[1771617733572,5.59908587,84.82,84.774,16.26160843]
[1771617736275,5.59908587,84.815,84.763,10.6209]
[1771617736670,5.59908587,84.815,84.763,16.26290843]
[1771617737775,5.59908587,84.815,84.766,5.64200843]
[1771617738370,5.59908587,84.815,84.75,9.53664358]
[1771617738371,5.59908587,84.83,84.768,5.64200843]
[1771617738779,5.59908587,84.83,84.771,5.64200843]
[1771617739875,5.59908587,84.827,84.776,5.64200843]
[1771617740075,5.59908587,84.827,84.768,5.64200843]
[1771617740270,5.59908587,84.8,84.768,5.64200843]
[1771617741677,5.59908587,84.795,84.744,10.6232]
[1771617742681,10.6174,84.792,84.744,10.6232]
[1771617742977,16.21648587,84.792,84.744,10.6232]
[1771617743382,5.59908587,84.791,84.744,10.6232]
[1771617744985,10.6174,84.792,84.747,5.64200843]
[1771617745883,10.6174,84.792,84.749,5.64200843]
[1771617746087,35.43,84.829,84.749,5.64200843]
[1771617746088,5.59908587,84.829,84.749,5.64200843]
[1771617747787,10.6151,84.81,84.767,5.64200843]
[1771617751985,10.6143,84.817,84.771,5.64200843]
[1771617752779,10.6143,84.817,84.775,5.64200843]
[1771617753998,10.6134,84.824,84.778,5.64200843]
[1771617754582,10.6142,84.817,84.778,5.64200843]
[1771617754786,5.59908587,84.816,84.778,5.64200843]
[1771617755586,5.59908587,84.816,84.779,10.6189]
[1771617755979,10.6133,84.825,84.78,5.64200843]
[1771617758093,10.6133,84.825,84.781,5.32640958]
[1771617758494,5.31038648,84.843,84.791,5.32640958]
[1771617758791,5.31038648,84.843,84.801,5.32640958]
[1771617759191,5.31038648,84.843,84.802,15.94240958]
[1771617759493,5.31038648,84.843,84.803,5.32640958]
[1771617759692,5.31038648,84.843,84.806,10.6156]
[1771617759894,10.6098,84.853,84.811,5.32640958]
[1771617760194,35.43,84.886,84.806,10.6156]
[1771617760195,5.31038648,84.871,84.821,5.32640958]
[1771617760594,5.31038648,84.869,84.821,5.32640958]
[1771617760996,5.31038648,84.866,84.821,5.32640958]
[1771617761295,5.31038648,84.866,84.81,3.55975749]
[1771617761492,5.31038648,84.859,84.81,3.55975749]
[1771617761892,5.31038648,84.859,84.81,8.88365268]
[1771617762395,5.31038648,84.859,84.757,29.21828643]
[1771617762396,5.31038648,84.849,84.795,5.32640958]
[1771617762895,10.6105,84.847,84.798,5.32640958]
[1771617763098,5.31038648,84.847,84.8,3.5572431]
[1771617763596,10.6113,84.841,84.8,3.5572431]
[1771617763802,5.31038648,84.839,84.791,5.32640958]
[1771617764391,5.31038648,84.839,84.76,21.91518788]
[1771617764392,5.31038648,84.864,84.811,5.32640958]
[1771617764800,5.31038648,84.864,84.82,3.5572431]
[1771617765101,10.6085,84.863,84.82,3.5572431]
[1771617765699,10.609,84.859,84.82,3.5572431]
[1771617765901,5.31038648,84.858,84.811,5.32640958]
[1771617766499,10.6107,84.845,84.811,5.32640958]
[1771617766700,5.31038648,84.858,84.811,5.32640958]
[1771617767801,5.31038648,84.851,84.811,5.32640958]
[1771617768698,10.6104,84.848,84.811,5.32640958]
[1771617769606,5.31038648,84.851,84.811,5.32640958]
[1771617771302,10.6101,84.85,84.811,5.32640958]
[1771617774704,5.31038648,84.851,84.811,5.32640958]
[1771617777605,10.6101,84.85,84.811,5.32640958]
[1771617779797,35.43,84.889,84.8,2.52257393]
[1771617779798,40.74038648,84.889,84.8,2.52257393]
[1771617779997,5.31038648,84.888,84.8,2.52257393]
[1771617780399,5.31038648,84.841,84.8,2.52257393]
[1771617780609,5.31038648,84.841,84.787,2.52257393]
[1771617781399,5.31038648,84.841,84.794,2.53256511]
[1771617781910,10.6114,84.84,84.798,10.6165]
[1771617782409,10.6114,84.84,84.799,2.8468649]
[1771617782604,5.31038648,84.854,84.806,2.8468649]
[1771617783704,5.31038648,84.854,84.816,10.6143]
[1771617784707,5.31038648,84.854,84.816,13.52775147]
[1771617785108,5.31038648,84.854,84.817,2.92326205]
[1771617785608,10.6084,84.864,84.818,13.53736205]
[1771617785803,10.6074,84.872,84.819,2.92326205]
[1771617786306,5.31038648,84.88,84.837,2.97376299]
[1771617786899,5.31038648,84.88,84.839,10.6114]
[1771617788111,5.31038648,84.88,84.84,3.55489235]
[1771617788604,5.58425159,84.893,84.844,13.64103127]
[1771617788805,5.58425159,84.893,84.845,3.03023127]
[1771617789001,5.58425159,84.893,84.851,3.039478]
[1771617789811,5.58425159,84.893,84.811,14.60914321]
[1771617789812,5.58425159,84.889,84.83,3.55489235]
[1771617790211,5.58425159,84.878,84.831,10.6124]
[1771617791310,5.58425159,84.869,84.826,3.039478]
[1771617793008,5.58425159,84.869,84.827,10.6129]
[1771617794408,21.1941,84.955,84.881,5.52677639]
[1771617794610,9.52549238,84.98,84.881,5.52677639]
[1771617795004,10.5976,84.95,84.889,5.52677639]
[1771617796013,10.5965,84.959,84.904,10.6033]
[1771617796214,10.5965,84.959,84.905,5.52677639]
[1771617796410,5.58425159,84.958,84.905,5.52677639]
[1771617797815,5.58425159,84.955,84.905,5.52677639]
[1771617799618,5.58425159,84.955,84.895,10.6044]
[1771617802025,5.58425159,84.955,84.895,16.13117639]
[1771617806225,5.58425159,84.955,84.898,5.52677639]
[1771617808818,5.58425159,84.953,84.898,5.52677639]
[1771617810124,5.58425159,84.944,84.852,5.52677639]
[1771617810530,5.58425159,84.939,84.852,5.52677639]
[1771617811322,5.58425159,84.939,84.883,5.52677639]
[1771617811729,5.58425159,84.959,84.883,5.52677639]
[1771617811929,5.58425159,84.959,84.906,5.52677639]
[1771617811930,10.5969,84.956,84.906,5.52677639]
[1771617812126,3.54925617,84.95,84.906,5.52677639]
[1771617812329,5.58425159,84.959,84.906,5.52677639]
[1771617812532,3.54925617,84.95,84.906,5.52677639]
[1771617813723,10.5978,84.949,84.906,5.52677639]
[1771617815433,5.58425159,84.938,84.891,5.52677639]
[1771617816240,10.6003,84.929,84.891,5.52677639]
[1771617817142,10.6019,84.916,84.88,3.54925617]
[1771617817341,5.62169933,84.928,84.878,5.93424231]
[1771617817528,5.62169933,84.928,84.88,3.54925617]
[1771617817731,10.6005,84.927,84.882,10.606]
[1771617818139,10.6005,84.927,84.88,3.54925617]
[1771617819043,10.6015,84.919,84.88,3.54925617]
[1771617820341,5.62169933,84.925,84.88,3.54925617]
[1771617820936,5.62169933,84.925,84.88,14.15545617]
[1771617821635,5.62169933,84.925,84.88,20.08969848]
[1771617822035,5.62169933,84.925,84.88,10.6062]
[1771617822337,21.1919,84.964,84.871,5.93424231]
[1771617822338,5.62169933,84.914,84.871,5.93424231]
[1771617822843,5.62169933,84.914,84.826,21.2261]
[1771617822844,3.55145991,84.91,84.854,5.93424231]
[1771617823045,5.62169933,84.899,84.85,3.55145991]
[1771617824042,10.6051,84.891,84.84,9.48570222]
[1771617824342,5.62169933,84.889,84.841,5.93424231]
[1771617824839,5.62169933,84.889,84.843,5.93424231]
[1771617825837,10.6054,84.888,84.844,10.6107]
[1771617826037,16.22709933,84.888,84.844,10.6107]
[1771617826442,5.62169933,84.888,84.844,10.6107]
[1771617826636,5.62169933,84.888,84.844,16.54494231]
[1771617826941,5.62169933,84.888,84.845,5.93424231]
[1771617827744,5.62169933,84.888,84.85,3.55145991]
[1771617829346,5.62169933,84.899,84.851,5.93424231]
[1771617830153,5.62169933,84.899,84.853,10.6097]
[1771617830348,5.62169933,84.899,84.819,12.05501838]
[1771617830349,5.62169933,84.945,84.89,3.55145991]
[1771617830655,5.62169933,84.959,84.908,10.6027]
[1771617830950,5.62169933,84.959,84.91,3.55145991]
[1771617831646,5.62169933,84.959,84.912,10.6023]
[1771617832244,5.62169933,84.959,84.912,16.53654231]
[1771617837351,5.62169933,84.959,84.912,5.93424231]
[1771617840750,5.62169933,84.973,84.921,5.93424231]
[1771617841555,5.62169933,84.973,84.925,16.53484231]
[1771617841945,5.62169933,84.97,84.915,10.6019]
[1771617843744,5.62169933,84.966,84.915,10.6019]
[1771617844448,5.62169933,84.966,84.873,14.60914321]
[1771617844449,5.62169933,84.959,84.882,5.93424231]
[1771617845051,10.5987,84.942,84.885,5.93424231]
[1771617845249,5.62169933,84.941,84.885,5.93424231]
[1771617846753,10.5993,84.937,84.889,5.76323432]
[1771617847547,10.5997,84.934,84.889,5.76323432]
[1771617848850,16.64574137,84.934,84.889,5.76323432]
[1771617849053,9.50592296,84.97,84.872,10.97107872]
[1771617849054,6.04604137,84.931,84.872,16.60790729]
[1771617849253,6.04604137,84.931,84.872,5.63682857]
[1771617850755,6.04604137,84.926,84.876,10.6068]
[1771617851349,6.04604137,84.922,84.872,5.63682857]
[1771617852657,6.04604137,84.922,84.873,10.6072]
[1771617853951,6.04604137,84.915,84.854,5.63682857]
[1771617854150,35.43,84.952,84.86,9.189296]
[1771617854151,6.04604137,84.909,84.86,9.189296]
[1771617854345,6.04604137,84.909,84.861,5.63682857]
[1771617855857,6.04604137,84.909,84.862,16.24532857]
[1771617857750,6.04604137,84.904,84.862,5.63682857]
[1771617858557,6.04604137,84.889,84.84,10.97107872]
[1771617858756,6.04604137,84.889,84.834,5.63682857]
[1771617859062,3.55246743,84.88,84.834,5.63682857]
[1771617859252,6.04604137,84.879,84.834,5.63682857]
[1771617859658,6.04604137,84.879,84.82,3.55246743]
[1771617859659,6.04604137,84.879,84.821,5.63682857]
[1771617859861,6.04604137,84.879,84.782,21.2372]
[1771617859862,6.04604137,84.858,84.806,5.63682857]
[1771617860157,6.04604137,84.858,84.82,3.55246743]
[1771617860355,6.04604137,84.858,84.82,9.189296]
[1771617860550,3.55246743,84.87,84.821,5.63682857]
[1771617861157,6.04604137,84.873,84.831,5.63682857]
[1771617862062,10.6083,84.864,84.818,5.63682857]
[1771617862558,3.55246743,84.87,84.822,5.63682857]
[1771617863656,10.6074,84.872,84.822,5.63682857]
[1771617863853,16.65344137,84.872,84.822,5.63682857]
[1771617866459,6.04604137,84.871,84.822,5.63682857]
[1771617869664,6.04604137,84.859,84.81,9.189296]
[1771617869863,6.04604137,84.859,84.811,5.63682857]
[1771617870169,6.04604137,84.858,84.812,5.63682857]
[1771617871670,6.04604137,84.858,84.815,5.63682857]
[1771617872164,10.6082,84.866,84.821,5.63682857]
[1771617873264,16.65424137,84.866,84.821,5.63682857]
[1771617876164,6.04604137,84.882,84.83,3.55246743]
[1771617876369,6.04604137,84.882,84.841,5.63682857]
[1771617877774,16.65214137,84.882,84.841,5.63682857]
[1771617879873,6.00100883,84.881,84.841,5.63682857]
[1771617880075,6.00100883,84.879,84.832,10.6123]
[1771617880574,6.00100883,84.869,84.81,9.62069667]
[1771617880876,6.00100883,84.859,84.81,6.06822924]
[1771617881277,6.00100883,84.857,84.812,10.6148]
[1771617883479,6.00100883,84.857,84.816,10.6143]
[1771617885183,16.61060883,84.855,84.813,6.06822924]
[1771617885582,6.00100883,84.855,84.813,6.06822924]
[1771617886586,6.00100883,84.855,84.813,16.68282924]
[1771617887682,6.00100883,84.853,84.813,6.06822924]
[1771617888787,10.6102,84.849,84.813,6.06822924]
[1771617889193,6.00100883,84.848,84.813,6.06822924]
[1771617890895,3.55780867,84.87,84.813,6.06822924]
[1771617890896,6.00100883,84.869,84.813,6.06822924]
[1771617891991,10.6093,84.857,84.813,6.06822924]
[1771617892795,10.6093,84.857,84.81,3.55780867]
[1771617892796,10.6084,84.864,84.821,6.06822924]
[1771617893489,6.00100883,84.86,84.821,6.06822924]
[1771617893694,6.00100883,84.86,84.81,3.55780867]
[1771617894697,16.61110883,84.851,84.81,3.55780867]
[1771617895396,16.61110883,84.851,84.81,9.62603791]
[1771617896200,6.00100883,84.865,84.821,6.06822924]
[1771617897801,6.00100883,84.863,84.821,6.06822924]
[1771617898398,10.6083,84.864,84.83,9.62603791]
[1771617898703,10.6083,84.864,84.831,6.06822924]
[1771617901996,6.00100883,84.875,84.84,3.55780867]
[1771617902203,10.6059,84.884,84.841,6.06822924]
[1771617902502,16.60690883,84.884,84.841,6.06822924]
[1771617902701,16.60690883,84.884,84.85,3.55780867]
[1771617903007,6.00100883,84.898,84.86,3.55780867]
[1771617903208,6.00100883,84.91,84.88,3.55780867]
[1771617903598,6.00100883,84.923,84.88,3.55780867]
[1771617904303,6.00100883,84.923,84.89,3.55780867]
[1771617905007,6.00100883,84.923,84.881,6.06822924]
[1771617906808,6.00100883,84.921,84.881,6.06822924]
[1771617908709,6.12758202,84.943,84.901,6.02587354]
[1771617910509,6.12758202,84.939,84.89,3.55780867]
[1771617911104,6.12758202,84.939,84.891,16.63077354]